bitfinex/quotes_ETHUSD_20260207
["timestamp","ask_amount","ask_price","bid_price","bid_amount"]
[1770438714609,10.107842,2103.3,2102.5,12.37176122]
[1770438714782,2.81540935,2104.3,2102.6,0.04810659]
[1770438714986,0.04623434,2104.1,2102.5,12.37176122]
[1770438715194,0.04623434,2103.7,2102.7,3.66872]
[1770438715405,0.04623434,2104.5,2103.3,0.0011]
[1770438715576,0.001,2104.0,2103.3,0.0011]
[1770438715976,0.04623434,2104.6,2103.4,9.73368783]
[1770438716193,0.04623434,2104.6,2103.3,0.0011]
[1770438716397,9.855177,2104.4,2103.5,9.73368783]
[1770438716598,9.855177,2104.3,2103.6,0.97336878]
[1770438716794,0.04623434,2104.6,2103.6,0.97336878]
[1770438717005,0.04623434,2104.0,2103.5,9.73368783]
[1770438717212,0.04623434,2106.1,2104.0,3.7486374]
[1770438717410,0.04623434,2105.5,2104.4,9.73368783]
[1770438717580,0.04623434,2105.5,2104.0,3.8510374]
[1770438717581,0.04623434,2106.1,2104.7,9.73368783]
[1770438718003,1.23328069,2106.1,2104.7,9.73368783]
[1770438718209,4.74725982,2106.5,2104.7,9.73368783]
[1770438718210,0.04623434,2106.7,2105.3,1.18747921]
[1770438718507,0.04623434,2106.2,2105.3,1.18747921]
[1770438718887,0.04623434,2106.5,2105.3,1.18747921]
[1770438719088,0.04623434,2106.6,2105.3,1.18747921]
[1770438719290,0.04623434,2106.7,2105.5,9.73368783]
[1770438719611,0.04623434,2106.4,2105.5,10.82580453]
[1770438719906,0.04623434,2106.7,2105.3,1.18747921]
[1770438720407,0.04623434,2106.6,2105.5,9.73368783]
[1770438720606,0.04623434,2106.6,2105.2,4.74991687]
[1770438720809,0.04623434,2106.5,2105.2,4.74991687]
[1770438721010,0.04623434,2106.5,2105.3,0.96860899]
[1770438721211,0.04623434,2106.9,2105.3,0.96860899]
[1770438721410,0.001,2107.1,2105.9,9.73368783]
[1770438721814,0.04723434,2107.1,2105.9,9.73368783]
[1770438722115,0.04723434,2107.1,2105.2,1.18753562]
[1770438722116,0.04623434,2106.2,2105.2,1.18753562]
[1770438722313,0.04623434,2106.2,2105.2,2.25631768]
[1770438722494,0.04623434,2105.9,2105.2,2.25631768]
[1770438722700,0.04623434,2105.9,2105.2,1.18752736]
[1770438722898,0.04623434,2105.9,2105.0,4.75047362]
[1770438723115,0.04623434,2105.9,2105.1,1.1875559]
[1770438723294,0.04623434,2105.9,2105.2,1.18752492]
[1770438723502,0.04623434,2105.6,2105.0,4.7505778]
[1770438723814,0.04623434,2105.9,2105.2,1.18752152]
[1770438724193,0.04623434,2105.9,2105.1,4.7501425]
[1770438724194,0.04623434,2105.6,2105.1,1.18756166]
[1770438724384,1.23356061,2105.6,2104.3,1.18804352]
[1770438724584,0.04623434,2105.6,2104.4,1.94225429]
[1770438725014,1.23354755,2105.6,2104.4,1.94225429]
[1770438725226,1.23354644,2105.6,2104.4,1.94225429]
[1770438725720,0.04623434,2105.3,2104.4,1.94225429]
[1770438726488,0.04623434,2105.3,2104.1,4.7524286]
[1770438726489,0.04623434,2105.0,2103.8,14.48695027]
[1770438726686,0.04623434,2105.0,2104.3,1.18800975]
[1770438726893,0.04623434,2105.3,2104.4,1.18796315]
[1770438727089,3.83744198,2105.6,2104.5,0.59400876]
[1770438727302,1.23356194,2105.6,2104.5,0.59400876]
[1770438727606,0.04523533,2105.6,2104.5,0.59400876]
[1770438728022,0.04623434,2105.3,2104.5,0.59400876]
[1770438728317,0.04523533,2105.6,2104.5,0.59400876]
[1770438728523,1.23255027,2105.6,2104.6,1.18787418]
[1770438728891,0.59816223,2105.5,2104.6,1.18787418]
[1770438729091,0.04623434,2105.3,2104.5,1.18789243]
[1770438729312,0.04623434,2105.3,2104.5,1.18792216]
[1770438729502,0.04623434,2105.3,2104.4,1.18794414]
[1770438729699,0.04623434,2105.3,2104.5,1.18791642]
[1770438730404,0.04623434,2105.0,2103.9,4.8553757]
[1770438730596,1.23379888,2105.2,2104.4,1.18796916]
[1770438730800,0.04623434,2105.2,2104.4,1.18798502]
[1770438731325,0.04623434,2105.2,2104.2,4.75232054]
[1770438731617,0.04623434,2104.9,2104.4,1.18798691]
[1770438731817,0.04623434,2105.2,2104.4,1.18798691]
[1770438732020,0.04623434,2104.9,2104.4,1.18798691]
[1770438732606,0.04623434,2104.9,2104.1,4.75261227]
[1770438732905,1.23394465,2104.9,2104.1,1.18815645]
[1770438733521,1.2339548,2104.9,2104.1,1.18815645]
[1770438733906,1.23394775,2104.9,2104.1,1.18815645]
[1770438734104,0.04623434,2105.2,2104.1,2.25751498]
[1770438734305,0.04623434,2105.3,2104.1,2.25751498]
[1770438734622,0.04623434,2105.0,2104.1,2.25751498]
[1770438735404,0.04623434,2104.7,2104.1,2.25751498]
[1770438735704,0.04623434,2105.0,2104.1,2.25751498]
[1770438735919,0.04623434,2104.7,2104.1,2.25751498]
[1770438736121,0.04623434,2104.6,2104.2,0.7010318]
[1770438736307,0.04623434,2104.6,2103.4,9.0522493]
[1770438736506,0.04623434,2104.6,2104.1,1.18815391]
[1770438736707,4.75074872,2105.0,2103.6,0.1024]
[1770438736916,0.04623434,2104.8,2103.8,8.9498493]
[1770438737123,0.04623434,2104.8,2103.6,0.1024]
[1770438737326,0.04623434,2104.5,2103.6,1.98000692]
[1770438737498,0.04623434,2104.5,2103.6,1.87760692]
[1770438738022,3.64876752,2104.8,2103.6,1.87760692]
[1770438739098,4.7900565,2105.3,2103.8,0.0011]
[1770438739299,0.04623434,2105.0,2103.8,0.0011]
[1770438739505,0.04623434,2105.0,2103.8,1.17153618]
[1770438740231,0.04623434,2104.7,2103.8,1.17153618]
[1770438741338,0.04623434,2104.9,2103.9,1.1882694]
[1770438741937,1.23373744,2105.3,2103.9,1.1882694]
[1770438742430,4.83627062,2105.3,2103.9,1.1882694]
[1770438742638,0.04623434,2105.3,2104.1,8.9498493]
[1770438742802,1.23373582,2105.3,2104.1,8.9498493]
[1770438743537,4.83611817,2105.6,2104.2,1.18809999]
[1770438743732,0.04623434,2105.3,2104.2,1.18809999]
[1770438743906,0.04623434,2105.3,2104.3,1.48903493]
[1770438745440,0.04623434,2105.3,2104.4,1.18798707]
[1770438745624,1.23371746,2105.3,2104.4,1.18798707]
[1770438745939,0.04623434,2105.6,2104.5,8.9498493]
[1770438746131,0.04623434,2105.6,2104.6,1.01378364]
[1770438747643,0.04623434,2105.3,2104.7,1.18781774]
[1770438747825,1.23354971,2105.6,2104.7,1.18781774]
[1770438748141,0.04623434,2105.3,2104.7,1.18781774]
[1770438748535,0.04623434,2105.6,2104.7,1.18781774]
[1770438748743,0.04623434,2105.3,2104.8,0.69528723]
[1770438748918,0.04623434,2105.2,2104.6,1.18787064]
[1770438749730,0.04623434,2104.9,2104.4,1.18798707]
[1770438750133,0.04623434,2104.8,2103.8,4.75425539]
[1770438750342,3.60253318,2104.8,2103.5,8.9498493]
[1770438750643,0.04623434,2105.0,2103.5,8.9498493]
[1770438750644,0.04623434,2104.7,2103.5,8.9498493]
[1770438750818,3.60253318,2104.9,2103.6,1.37040128]
[1770438751022,0.04623434,2104.7,2103.6,1.37040128]
[1770438751331,3.60253318,2104.9,2103.6,1.37040128]
[1770438751526,0.04623434,2104.7,2103.6,1.37040128]
[1770438751840,4.79024371,2104.9,2103.7,1.18838237]
[1770438752043,0.04623434,2104.7,2103.8,0.73123131]
[1770438752242,1.23388542,2105.0,2103.9,8.9498493]
[1770438752431,1.23389435,2105.0,2104.1,0.0011]
[1770438753142,1.23377866,2105.2,2104.1,0.0011]
[1770438753443,0.04623434,2104.9,2104.1,0.0011]
[1770438753744,4.83631184,2105.2,2104.1,0.0011]
[1770438753949,3.64876752,2105.2,2104.1,0.0011]
[1770438754318,0.001,2105.4,2104.2,8.9498493]
[1770438754631,3.60253318,2104.5,2103.8,1.18828671]
[1770438754820,0.04623434,2104.3,2103.8,1.18828671]
[1770438755022,3.60253318,2104.5,2103.8,1.18828671]
[1770438755335,0.04623434,2104.3,2103.3,0.0011]
[1770438755539,0.04623434,2104.3,2103.6,1.18840198]
[1770438755834,1.23432866,2104.3,2103.3,0.0011]
[1770438756147,0.04623434,2104.0,2103.3,0.0011]
[1770438757223,4.90638526,2104.3,2103.3,0.0011]
[1770438757432,0.04623434,2104.0,2103.3,0.0011]
[1770438758224,0.04623434,2103.7,2103.3,0.0011]
[1770438758633,1.1882875,2103.9,2103.3,0.0011]
[1770438758951,0.04623434,2104.0,2103.3,0.0011]
[1770438759139,1.23449069,2104.0,2103.3,0.0011]
[1770438759343,0.59872036,2103.9,2103.3,0.0011]
[1770438760039,0.04623434,2103.7,2103.3,0.0011]
[1770438760236,1.18837623,2103.8,2103.3,0.0011]
[1770438760545,0.04623434,2103.7,2103.3,0.0011]
[1770438760762,4.85998722,2104.5,2103.3,8.9509493]
[1770438761056,0.04623434,2104.2,2103.3,8.9509493]
[1770438761219,3.6720566,2104.4,2103.3,8.9509493]
[1770438761421,0.04623434,2104.2,2103.3,8.9509493]
[1770438761622,3.6720566,2104.4,2103.4,0.89509493]
[1770438761923,0.04623434,2104.2,2103.4,0.89509493]
[1770438762353,4.86006269,2104.4,2103.5,1.18849536]
[1770438762554,0.04623434,2104.1,2103.4,1.18850943]
[1770438763031,0.04623434,2104.1,2103.3,1.18968119]
[1770438763227,0.04623434,2104.1,2103.3,1.78410769]
[1770438763436,4.86006269,2104.4,2103.4,1.18854798]
[1770438763646,0.04623434,2104.2,2103.4,1.18854798]
[1770438764240,1.18815645,2104.1,2103.3,1.78409872]
[1770438764429,0.04623434,2103.9,2103.3,1.78409872]
[1770438764743,1.18815645,2104.1,2103.3,1.18967222]
[1770438764744,3.6720566,2104.1,2103.3,1.18967222]
[1770438764946,0.04623434,2103.9,2103.3,1.18967222]
[1770438765738,0.04623434,2103.9,2103.5,0.0011]
[1770438766336,1.23454746,2103.9,2103.5,0.0011]
[1770438767255,1.23454746,2103.9,2102.8,4.75534093]
[1770438767256,0.04623434,2103.2,2102.4,0.0011]
[1770438767556,0.04623434,2102.7,2102.4,0.0011]
[1770438767754,0.04623434,2103.6,2102.4,0.0011]
[1770438767755,3.71829094,2103.1,2102.4,0.0011]
[1770438767956,3.6720566,2103.5,2102.4,1.1902165]
[1770438768176,0.04623434,2103.4,2102.5,0.59466853]
[1770438768328,0.04623434,2103.4,2102.6,1.18900409]
[1770438768524,0.04623434,2103.5,2102.6,1.18900409]
[1770438769352,0.04623434,2103.6,2102.6,1.18900409]
[1770438769549,1.83343275,2103.8,2102.6,1.18900409]
[1770438769749,1.83341065,2103.8,2102.7,0.6539689]
[1770438769931,1.83341836,2103.8,2102.7,0.6539689]
[1770438770337,0.64507967,2103.8,2102.8,1.188891]
[1770438770544,0.04623434,2103.8,2102.8,1.188891]
[1770438770755,0.04623434,2103.5,2102.8,1.188891]
[1770438771069,3.6720566,2103.7,2102.8,1.188891]
[1770438771233,0.04623434,2103.5,2102.8,1.188891]
[1770438771434,3.6720566,2103.7,2102.8,1.188891]
[1770438771655,0.49066566,2103.6,2102.8,2.2588929]
[1770438772056,3.6720566,2103.7,2102.8,2.2588929]
[1770438772357,1.23459996,2103.8,2102.8,2.2588929]
[1770438773139,0.04623434,2103.5,2102.8,2.2588929]
[1770438773338,0.04623434,2103.4,2102.8,2.2588929]
[1770438773654,3.6720566,2103.7,2102.8,1.0700019]
[1770438773833,0.04623434,2103.4,2102.7,1.18891844]
[1770438774235,0.04623434,2103.3,2102.6,1.18897123]
[1770438774539,0.04623434,2103.3,2102.7,1.18894661]
[1770438775155,0.04623434,2103.2,2102.5,1.18906064]
[1770438775334,0.04623434,2103.2,2102.6,1.48962525]
[1770438775871,0.04623434,2103.4,2102.6,1.48962525]
[1770438776378,0.04623434,2103.5,2102.6,1.48962525]
[1770438778138,0.04623434,2103.5,2102.8,0.0011]
[1770438778343,0.001,2103.4,2102.8,0.0011]
[1770438778964,0.04623434,2103.2,2102.8,0.0011]
[1770438779744,0.001,2103.4,2102.8,0.0011]
[1770438780060,0.04623434,2103.2,2102.8,0.0011]
[1770438780261,0.001,2103.4,2102.8,0.0011]
[1770438780450,0.49166566,2103.4,2102.8,0.0011]
[1770438781063,0.04623434,2103.2,2102.8,0.0011]
[1770438781236,0.49166566,2103.4,2102.8,0.0011]
[1770438782840,1.23457711,2103.8,2102.8,0.0011]
[1770438783246,1.2345631,2103.8,2102.8,0.0011]
[1770438783570,4.9066197,2103.8,2102.8,0.0011]
[1770438784557,0.04623434,2103.5,2102.8,0.0011]
[1770438785466,3.71829094,2103.8,2102.8,0.0011]
[1770438785677,3.71829094,2103.8,2102.8,1.41703507]
[1770438786645,4.90662249,2103.8,2102.9,1.18883446]
[1770438788145,3.71829094,2103.8,2102.9,1.18883446]
[1770438788341,0.04623434,2103.9,2102.9,1.18883446]
[1770438788679,0.04623434,2103.9,2103.1,1.18872141]
[1770438790345,0.001,2104.0,2103.1,1.18872141]
[1770438791050,0.001,2103.6,2103.1,1.18872141]
[1770438791257,0.001,2104.0,2103.1,1.18872141]
[1770438792675,3.54131382,2104.0,2103.1,1.18872141]
[1770438792875,3.54131382,2104.0,2103.0,1.189852]
[1770438792876,3.54031382,2103.7,2103.0,1.189852]
[1770438793058,0.04623434,2103.8,2103.0,1.189852]
[1770438794873,0.04623434,2103.8,2103.0,0.0011]
[1770438795545,1.18923284,2104.0,2103.0,0.0011]
[1770438795546,0.001,2104.0,2103.0,0.0011]
[1770438795746,0.35975482,2104.0,2103.0,0.73732306]
[1770438796672,0.04623434,2103.8,2103.0,0.73732306]
[1770438796885,0.04623434,2103.5,2103.0,1.18983767]
[1770438797056,0.04623434,2103.2,2103.0,1.18983767]
[1770438797261,0.04623434,2103.2,2103.0,0.0011]
[1770438797574,0.04623434,2103.5,2103.0,1.18986224]
[1770438798963,0.04623434,2103.5,2103.0,0.0011]
[1770438799982,1.23473378,2103.5,2103.0,0.0011]
[1770438800387,0.04623434,2103.5,2103.0,0.0011]
[1770438800979,0.04623434,2103.2,2103.0,0.0011]
[1770438801158,4.77505094,2103.5,2103.0,0.0011]
[1770438801671,3.58654816,2103.5,2103.0,0.0011]
[1770438801878,4.77505944,2103.5,2103.0,0.0011]
[1770438802279,0.04623434,2103.2,2103.0,0.0011]
[1770438802585,3.58654816,2103.5,2103.0,0.0011]
[1770438802975,4.77504396,2103.5,2103.0,0.0011]
[1770438803360,3.58654816,2104.1,2103.0,0.0011]
[1770438803564,4.77470781,2104.1,2103.0,0.04865099]
[1770438804071,4.77470564,2104.1,2103.0,0.04865099]
[1770438804269,1.18921455,2104.0,2103.0,0.04865099]
[1770438804462,0.04623434,2103.8,2103.1,0.04754885]
[1770438804663,4.72952837,2104.0,2103.1,0.04754885]
[1770438804882,4.72952837,2104.0,2103.0,0.04865111]
[1770438805455,0.04623434,2103.5,2103.0,0.0011]
[1770438805891,4.77488137,2103.8,2103.0,1.18987694]
[1770438806085,0.04623434,2103.5,2103.0,1.18987694]
[1770438806263,0.04623434,2103.5,2103.0,0.0011]
[1770438806656,3.58654816,2103.5,2103.0,0.0011]
[1770438806858,0.35865482,2103.4,2103.0,0.0011]
[1770438809966,0.04623434,2103.2,2103.0,0.0011]
[1770438810363,0.35865482,2103.4,2103.0,0.0011]
[1770438810569,0.04623434,2103.5,2103.0,0.0011]
[1770438811804,1.234743,2103.5,2103.0,0.0011]
[1770438812204,0.04623434,2103.2,2103.0,0.0011]
[1770438812384,4.77508517,2103.5,2103.0,0.0011]
[1770438813475,3.54031382,2103.1,2102.8,0.0011]
[1770438813674,0.41070903,2103.6,2102.5,3.42730214]
[1770438813984,0.04623434,2103.4,2102.5,3.42730214]
[1770438814397,1.23480413,2103.4,2102.5,1.19016064]
[1770438814575,0.04623434,2103.4,2102.5,1.19016064]
[1770438814781,1.23479243,2103.4,2103.2,0.0011]
[1770438814979,1.23579243,2103.4,2102.5,1.19016064]
[1770438815209,0.001,2103.4,2102.5,1.19016064]
[1770438815410,0.001,2103.4,2103.0,0.0011]
[1770438817475,0.04623434,2103.3,2103.0,0.0011]
[1770438817676,0.001,2103.4,2103.0,0.0011]
[1770438817872,0.04623434,2103.3,2103.0,0.0011]
[1770438818101,0.001,2103.4,2103.0,0.0011]
[1770438818310,0.04623434,2103.3,2103.0,0.0011]
[1770438819109,0.001,2103.4,2103.0,0.0011]
[1770438819476,1.23548469,2104.0,2103.0,0.0011]
[1770438819813,0.04723434,2104.0,2103.0,3.80675812]
[1770438820750,0.04723434,2104.0,2103.1,1.18872141]
[1770438821316,0.04623434,2103.7,2103.1,1.18872141]
[1770438821611,0.04623434,2103.4,2103.0,1.18984412]
[1770438821831,3.34596544,2103.7,2103.0,1.18984412]
[1770438822009,3.68056198,2103.7,2103.0,1.18984412]
[1770438822612,0.04623434,2103.6,2103.0,1.18984412]
[1770438823009,1.18834752,2103.8,2103.0,0.0011]
[1770438823244,0.04623434,2103.7,2103.0,0.0011]
[1770438827125,0.04623434,2103.7,2103.2,0.0011]
[1770438827525,0.001,2103.5,2103.2,0.0011]
[1770438828146,0.04623434,2103.9,2103.2,0.0011]
[1770438828954,3.34596544,2103.9,2103.2,0.0011]
[1770438829763,3.34596544,2103.6,2103.2,0.0011]
[1770438830618,3.34596544,2103.3,2103.2,0.0011]
[1770438830848,3.2997311,2103.3,2103.2,0.0011]
[1770438839356,3.3007311,2103.3,2103.2,0.0011]
[1770438840561,3.2997311,2103.2,2103.1,0.0011]
[1770438840734,3.67603855,2103.2,2103.1,0.0011]
[1770438840935,3.67603855,2103.2,2102.5,0.0011]
[1770438841131,3.34596544,2102.9,2102.5,0.0011]
[1770438842075,3.34596544,2102.9,2102.4,0.0011]
[1770438842076,3.34596544,2102.3,2101.7,0.0011]
[1770438842356,3.34596544,2102.3,2100.9,4.75977755]
[1770438842357,3.2997311,2101.8,2100.9,1.1899662]
[1770438842557,4.80231673,2102.6,2101.0,16.12610064]
[1770438842558,3.2997311,2102.4,2101.0,16.12610064]
[1770438842733,3.2997311,2102.6,2101.4,12.36052464]
[1770438842931,0.04623434,2102.7,2101.6,6.2280972]
[1770438843132,0.04623434,2102.6,2101.6,3.4595892]
[1770438843339,3.34596544,2102.5,2101.2,3.5619892]
[1770438843847,3.2997311,2102.3,2101.2,3.4595892]
[1770438844338,0.04623434,2102.5,2101.3,4.64932888]
[1770438844538,3.2997311,2102.6,2101.4,0.94082876]
[1770438844756,3.2997311,2102.6,2101.4,4.40041796]
[1770438846363,0.04623434,2102.5,2101.5,1.18962645]
[1770438846865,0.04623434,2102.2,2101.4,2.13050927]
[1770438847057,3.68989009,2102.2,2101.4,1.18968051]
[1770438847544,3.68989009,2102.2,2100.7,4.76017692]
[1770438847545,3.35444554,2101.9,2100.7,4.76017692]
[1770438847747,3.35444554,2101.9,2101.2,1.18978593]
[1770438848154,0.04623434,2101.6,2100.9,1.18993122]
[1770438848455,0.04623434,2101.3,2100.5,0.0011]
[1770438848659,0.33544455,2101.6,2100.5,3.26332893]
[1770438848857,3.34898343,2101.8,2100.6,12.16316437]
[1770438849057,3.34898343,2101.7,2100.6,8.90093544]
[1770438849438,3.39521777,2101.6,2100.6,8.90093544]
[1770438849645,0.04623434,2101.3,2100.5,0.0011]
[1770438849871,3.39521777,2101.6,2100.5,0.0011]
[1770438850078,3.68850521,2101.5,2100.5,0.0011]
[1770438850367,0.04623434,2101.3,2100.5,0.0011]
[1770438850577,0.33952178,2101.5,2100.5,3.26332893]
[1770438850775,0.04623434,2101.6,2100.6,3.26222893]
[1770438850973,0.04623434,2101.6,2100.5,0.0011]
[1770438850974,0.04623434,2101.5,2100.5,0.0011]
[1770438851346,1.235507,2102.2,2100.8,3.26222893]
[1770438851691,4.58449043,2102.2,2100.9,0.66681579]
[1770438851842,4.58449043,2102.2,2100.8,3.26222893]
[1770438852047,0.04623434,2101.9,2100.8,3.26222893]
[1770438852380,3.34898343,2102.1,2100.8,3.26222893]
[1770438852680,3.34898343,2102.1,2100.9,1.1899662]
[1770438852880,1.19017777,2102.3,2101.0,12.16316437]
[1770438853043,0.04623434,2102.2,2101.1,1.33531306]
[1770438853369,0.001,2102.3,2101.2,3.26222893]
[1770438854670,0.001,2102.3,2101.3,4.45196861]
[1770438855572,0.04623434,2102.2,2101.3,1.18973968]
[1770438855878,3.39521777,2102.2,2101.2,1.18978975]
[1770438856060,0.04623434,2102.1,2101.3,0.5948975]
[1770438856259,3.34898343,2102.2,2101.3,0.5948975]
[1770438856460,0.04623434,2102.1,2101.3,0.5948975]
[1770438856671,3.39521777,2102.1,2101.3,0.5948975]
[1770438856864,3.39521777,2102.1,2101.4,1.18968306]
[1770438857066,3.39521777,2102.1,2101.4,1.84401434]
[1770438857372,3.39521777,2101.8,2101.2,1.18976796]
[1770438857557,3.39521777,2101.8,2101.3,1.18973783]
[1770438857762,3.39521777,2101.8,2101.2,1.18976959]
[1770438857977,3.39521777,2101.8,2101.2,1.18976147]
[1770438858165,3.39521777,2101.8,2101.3,1.18973382]
[1770438858166,3.73473955,2101.8,2101.3,1.18973382]
[1770438858365,3.73473955,2101.8,2101.2,1.1897955]
[1770438858774,3.73473955,2101.8,2101.1,1.18981295]
[1770438858975,3.73473955,2101.8,2100.7,1.19117949]
[1770438859592,4.92421024,2101.8,2100.7,1.19117949]
[1770438859890,4.58468846,2101.8,2100.8,0.60538975]
[1770438860992,3.34898343,2101.6,2100.9,1.1899662]
[1770438861194,0.04623434,2101.5,2100.9,1.1899662]
[1770438861496,4.53832691,2102.0,2100.9,1.1899662]
[1770438861795,3.34898343,2102.0,2100.9,1.1899662]
[1770438861996,4.53804407,2102.5,2101.2,8.22992898]
[1770438862290,3.34898343,2102.5,2101.2,8.22992898]
[1770438862992,4.53804807,2102.5,2101.3,1.18973968]
[1770438863496,0.04623434,2102.3,2101.3,1.18973968]
[1770438864092,3.34898343,2102.4,2101.3,1.18973968]
[1770438864299,3.34898343,2102.4,2101.4,1.74408563]
[1770438864987,0.04623434,2102.3,2101.4,1.74408563]
[1770438865289,0.04623434,2102.3,2101.5,1.18962645]
[1770438865474,3.34898343,2102.7,2101.5,12.68178436]
[1770438865677,3.39521777,2102.7,2101.6,1.91843758]
[1770438866267,3.39521777,2102.4,2101.6,1.91843758]
[1770438866472,3.39521777,2102.1,2101.5,1.18962645]
[1770438867997,4.5842153,2102.7,2101.4,11.49215791]
[1770438868206,3.34898343,2102.7,2101.5,3.26222893]
[1770438868380,3.34898343,2102.7,2101.6,1.14921579]
[1770438868995,4.53793551,2102.7,2101.6,1.14921579]
[1770438869163,1.23507678,2102.9,2101.6,4.41144472]
[1770438869373,0.001,2103.3,2101.9,8.22992898]
[1770438869565,0.04623434,2103.2,2102.0,0.8229929]
[1770438869984,1.23491739,2103.2,2102.1,1.1892869]
[1770438871194,4.58390082,2103.2,2102.1,1.1892869]
[1770438871398,3.34898343,2103.1,2102.1,1.1892869]
[1770438871979,1.23507937,2102.9,2102.1,1.1892869]
[1770438872179,0.04623434,2102.8,2102.1,1.1892869]
[1770438873612,0.04623434,2102.5,2102.0,1.18933774]
[1770438873783,0.04623434,2102.5,2101.9,1.18937125]
[1770438873983,1.23532339,2102.5,2101.8,1.18941777]
[1770438874497,3.39521777,2102.5,2101.4,4.75869798]
[1770438874691,3.39521777,2102.5,2101.2,4.75917961]
[1770438874692,0.04623434,2102.2,2101.7,1.18950855]
[1770438875301,0.04623434,2102.2,2101.6,1.18954174]
[1770438875506,0.04623434,2102.2,2101.5,1.18959301]
[1770438875674,0.38575612,2102.2,2101.6,1.18956831]
[1770438876004,0.38575612,2102.2,2101.5,1.18958401]
[1770438876177,1.57503008,2102.2,2101.2,1.1897963]
[1770438878086,4.68971834,2102.2,2101.2,1.1897963]
[1770438878613,4.35001124,2102.5,2101.3,3.12380118]
[1770438878774,0.04623434,2102.2,2101.2,1.1897963]
[1770438878975,3.1609226,2102.2,2101.2,1.1897963]
[1770438879309,3.1609226,2101.9,2101.1,1.19093596]
[1770438879511,3.47701486,2101.9,2101.2,0.74290565]
[1770438879804,3.47701486,2101.9,2101.1,1.19093596]
[1770438880106,4.66642103,2101.9,2101.1,0.0011]
[1770438880304,3.43078052,2101.9,2101.1,0.0011]
[1770438880613,3.11468826,2102.2,2101.1,8.23102898]
[1770438880981,3.11468826,2102.2,2101.1,0.0011]
[1770438881183,4.80260175,2102.5,2101.2,3.12380118]
[1770438881408,1.23529498,2102.5,2101.2,3.12380118]
[1770438881921,4.34998324,2102.5,2101.2,3.12380118]
[1770438882081,3.11468826,2102.5,2101.4,9.41961204]
[1770438882279,1.19000588,2102.6,2101.4,12.54341322]
[1770438882791,1.19002429,2102.6,2101.4,12.54341322]
[1770438882985,0.001,2102.6,2101.4,12.54341322]
[1770438883196,0.001,2102.6,2101.5,4.88526474]
[1770438883502,4.30470189,2102.6,2101.5,1.76146356]
[1770438883691,3.11568826,2102.6,2101.5,1.76146356]
[1770438884384,4.30473345,2102.6,2101.6,1.18956985]
[1770438885408,0.04623434,2102.4,2101.6,1.18956985]
[1770438885593,0.04623434,2102.4,2101.6,3.25932197]
[1770438886496,3.11568826,2102.6,2101.6,3.25932197]
[1770438888114,4.30469988,2102.6,2101.6,3.25932197]
[1770438888621,4.30471208,2102.6,2101.6,3.25932197]
[1770438890099,0.001,2102.4,2101.6,3.25932197]
[1770438890300,0.001,2102.4,2101.7,0.80176014]
[1770438890490,3.11568826,2102.4,2101.7,0.80176014]
[1770438890690,3.11568826,2102.4,2101.8,1.18945665]
[1770438891624,0.001,2102.4,2101.8,1.18945665]
[1770438893328,3.11568826,2102.4,2101.8,1.18945665]
[1770438894198,3.5462612,2102.4,2101.8,1.18945665]
[1770438894394,3.11568826,2102.4,2101.7,1.18947327]
[1770438895127,3.11568826,2102.4,2101.4,1.19078306]
[1770438897219,3.11468826,2102.2,2101.4,1.19078306]
[1770438898087,3.1609226,2102.1,2101.4,1.19078306]
[1770438899241,4.30402435,2102.1,2101.4,1.19078306]
[1770438899420,4.35025869,2102.1,2101.4,1.19078306]
[1770438901517,3.11468826,2102.0,2101.4,1.19078306]
[1770438902309,3.11468826,2102.0,2101.4,0.0011]
[1770438902310,3.1609226,2101.8,2101.4,0.0011]
[1770438902538,3.11468826,2101.4,2101.1,0.0011]
[1770438902838,3.11468826,2101.4,2100.3,4.76230017]
[1770438902839,3.1609226,2100.8,2100.3,0.0011]
[1770438903121,3.1609226,2100.8,2100.3,0.0022]
[1770438903521,4.30476775,2100.7,2100.3,0.0022]
[1770438904398,3.1609226,2100.5,2100.0,0.0011]
[1770438904726,3.1609226,2100.5,2099.6,1.19180299]
[1770438904727,3.11468826,2100.5,2099.6,0.0011]
[1770438904914,0.31146883,2100.4,2099.6,0.59671276]
[1770438905221,3.11468826,2100.3,2099.6,0.0011]
[1770438905426,4.30501915,2100.3,2099.6,0.0011]
[1770438905608,0.31146883,2100.4,2099.6,0.0011]
[1770438905812,4.76008428,2100.9,2099.6,0.0011]
[1770438905813,3.23824186,2101.0,2099.8,8.22992898]
[1770438906038,0.04623434,2100.9,2099.6,3.12774589]
[1770438906334,3.23824186,2100.9,2099.6,3.12774589]
[1770438906930,0.04623434,2101.1,2099.8,3.12664589]
[1770438907098,3.2844762,2101.1,2099.9,0.31266459]
[1770438907300,3.23824186,2101.1,2099.9,0.31266459]
[1770438908010,3.23824186,2101.1,2100.0,1.19047619]
[1770438908011,1.18990956,2101.0,2100.0,1.19047619]
[1770438908329,4.42815142,2101.0,2100.0,1.19047619]
[1770438908932,3.26557246,2101.3,2100.1,11.55971053]
[1770438909103,3.3118068,2101.2,2100.2,1.27501867]
[1770438909432,0.04623434,2100.9,2100.0,1.19047619]
[1770438909602,3.3118068,2100.9,2100.0,1.19047619]
[1770438910004,3.26557246,2100.4,2099.6,0.0011]
[1770438912449,4.76034701,2100.7,2099.6,0.0011]
[1770438912450,1.19012158,2100.7,2099.6,0.0011]
[1770438912606,4.4556323,2100.8,2099.6,3.33088155]
[1770438912940,4.4556323,2100.8,2099.7,0.33308816]
[1770438913114,8.02504398,2101.1,2099.7,11.89279869]
[1770438913818,0.04623434,2100.9,2099.7,11.89279869]
[1770438914269,0.04623434,2100.9,2099.8,1.19168957]
[1770438914270,3.26557246,2100.7,2099.8,1.19168957]
[1770438914444,3.3118068,2100.6,2099.8,1.19168957]
[1770438914747,1.19002284,2100.8,2099.5,0.0011]
[1770438914748,3.26557246,2100.0,2099.5,0.0011]
[1770438916353,0.04623434,2099.8,2099.5,0.0011]
[1770438917242,3.3118068,2099.8,2098.7,4.76576706]
[1770438917440,0.04623434,2099.5,2098.7,4.76576706]
[1770438917907,3.76204077,2099.8,2098.7,4.76576706]
[1770438918114,0.45023397,2099.8,2098.7,4.76576706]
[1770438918343,1.19051963,2100.0,2098.7,4.76576706]
[1770438918720,4.4560158,2100.1,2098.7,4.76576706]
[1770438918923,4.50223869,2100.1,2098.7,8.09554861]
[1770438919341,4.50223014,2100.1,2098.7,8.09554861]
[1770438919542,0.04623434,2099.8,2098.7,0.0011]
[1770438919838,0.45022301,2100.0,2098.7,3.33088155]
[1770438920516,0.04623434,2100.4,2098.9,3.32978155]
[1770438920712,4.45571781,2100.6,2099.1,3.32978155]
[1770438921245,3.26557246,2100.6,2099.1,3.32978155]
[1770438921724,0.04623434,2100.7,2099.3,3.32978155]
[1770438921925,0.04623434,2100.7,2099.4,0.34321815]
[1770438923040,1.23631441,2100.7,2099.5,1.1907597]
[1770438923845,0.04623434,2101.1,2099.6,3.32978155]